fUST/lending_fUST_20260404
["ID","MTS","AMOUNT","RATE_DAILY","PERIOD"]
[419649107,1775251841995,-662.50365559,0.00021994,2]
[419649109,1775251842006,-662.50365559,0.00021994,2]
[419649111,1775251842017,-662.50365559,0.00021994,2]
[419649113,1775251842027,-500.0,0.00021994,2]
[419649115,1775251842037,-662.50365559,0.00021994,2]
[419649117,1775251842047,-662.50365559,0.00021994,2]
[419649120,1775251842057,-406.9291232,0.00021994,2]
[419649122,1775251842068,-662.50365559,0.00021994,2]
[419649124,1775251842078,-500.0,0.00021994,2]
[419649126,1775251842088,-662.50365559,0.00021994,2]
[419649128,1775251842098,-662.50365559,0.00021994,2]
[419649130,1775251842108,-500.0,0.00021994,2]
[419649132,1775251842118,-662.50365559,0.00021994,2]
[419649134,1775251842128,-500.0,0.00021994,2]
[419649136,1775251842138,-662.50365559,0.00021994,2]
[419649138,1775251842148,-662.50365559,0.00021994,2]
[419649140,1775251842158,-500.0,0.00021994,2]
[419649142,1775251842168,-662.50365559,0.00021994,2]
[419649144,1775251842178,-662.50365559,0.00021994,2]
[419649146,1775251842188,-500.0,0.00021994,2]
[419649148,1775251842198,-662.50365559,0.00021994,2]
[419649150,1775251842209,-662.50365559,0.00021994,2]
[419649153,1775251842220,-500.0,0.00021994,2]
[419649155,1775251842230,-662.50365559,0.00021994,2]
[419649157,1775251842239,-500.0,0.00021994,2]
[419649159,1775251842249,-662.50365559,0.00021994,2]
[419649161,1775251842259,-500.0,0.00021994,2]
[419649163,1775251842269,-662.50365559,0.00021994,2]
[419649165,1775251842279,-662.50365559,0.00021994,2]
[419649167,1775251842289,-500.0,0.00021994,2]
[419649169,1775251842299,-500.0,0.00021994,2]
[419649171,1775251842309,-662.50365559,0.00021994,2]
[419649173,1775251842318,-662.50365559,0.00021994,2]
[419649175,1775251842329,-500.0,0.00021994,2]
[419649177,1775251842339,-662.50365559,0.00021994,2]
[419649179,1775251842349,-500.0,0.00021994,2]
[419649181,1775251842358,-662.50365559,0.00021994,2]
[419649184,1775251842369,-500.0,0.00021994,2]
[419649186,1775251842379,-662.50365559,0.00021994,2]
[419649188,1775251842388,-500.0,0.00021994,2]
[419649190,1775251842397,-662.50365559,0.00021994,2]
[419649192,1775251842407,-662.50365559,0.00021994,2]
[419649194,1775251842418,-500.0,0.00021994,2]
[419649196,1775251842428,-662.50365559,0.00021994,2]
[419649198,1775251842439,-500.0,0.00021994,2]
[419649200,1775251842449,-662.50365559,0.00021994,2]
[419649202,1775251842460,-500.0,0.00021994,2]
[419649205,1775251842471,-662.50365559,0.00021994,2]
[419649207,1775251842482,-662.50365559,0.00021994,2]
[419649210,1775251842493,-500.0,0.00021994,2]
[419649212,1775251842503,-662.50365559,0.00021994,2]
[419649214,1775251842513,-500.0,0.00021994,2]
[419649216,1775251842523,-662.50365559,0.00021994,2]
[419649218,1775251842533,-500.0,0.00021994,2]
[419649220,1775251842544,-500.0,0.00021994,2]
[419649222,1775251842554,-662.50365559,0.00021994,2]
[419649224,1775251842564,-500.0,0.00021994,2]
[419649226,1775251842574,-662.50365559,0.00021994,2]
[419649229,1775251842584,-500.0,0.00021994,2]
[419649231,1775251842594,-662.50365559,0.00021994,2]
[419649233,1775251842604,-662.50365559,0.00021994,2]
[419649235,1775251842614,-662.50365559,0.00021994,2]
[419649237,1775251842625,-662.50365559,0.00021994,2]
[419649239,1775251842635,-662.50365559,0.00021994,2]
[419649243,1775251842645,-662.50365559,0.00021994,2]
[419649245,1775251842655,-662.50365559,0.00021994,2]
[419649247,1775251842666,-662.50365559,0.00021994,2]
[419649249,1775251842677,-662.50365559,0.00021994,2]
[419649251,1775251842686,-662.50365559,0.00021994,2]
[419649254,1775251842696,-662.50365559,0.00021994,2]
[419649256,1775251842706,-662.50365559,0.00021994,2]
[419649258,1775251842717,-662.50365559,0.00021994,2]
[419649260,1775251842726,-662.50365559,0.00021994,2]
[419649262,1775251842736,-662.50365559,0.00021994,2]
[419649264,1775251842746,-662.50365559,0.00021994,2]
[419649267,1775251842756,-662.50365559,0.00021994,2]
[419649269,1775251842766,-662.50365559,0.00021994,2]
[419649271,1775251842776,-662.50365559,0.00021994,2]
[419649273,1775251842786,-662.50365559,0.00021994,2]
[419649275,1775251842796,-662.50365559,0.00021994,2]
[419649276,1775251842806,-662.50365559,0.00021994,2]
[419649277,1775251842816,-662.50365559,0.00021994,2]
[419649278,1775251842827,-662.50365559,0.00021994,2]
[419649279,1775251842837,-650.45813456,0.00021994,2]
[419649280,1775251842848,-650.45813456,0.00021994,2]
[419649281,1775251842858,-500.0,0.00021994,2]
[419649282,1775251842868,-650.45813456,0.00021994,2]
[419649283,1775251842878,-500.0,0.00021994,2]
[419649284,1775251842888,-650.45813456,0.00021994,2]
[419649285,1775251842897,-500.0,0.00021994,2]
[419649286,1775251842907,-650.45813456,0.00021994,2]
[419649287,1775251842918,-500.0,0.00021994,2]
[419649288,1775251842928,-650.45813456,0.00021994,2]
[419649289,1775251842937,-650.45813456,0.00021994,2]
[419649290,1775251842947,-500.0,0.00021994,2]
[419649291,1775251842958,-500.0,0.00021994,2]
[419649292,1775251842968,-650.45813456,0.00021994,2]
[419649293,1775251842979,-500.0,0.00021994,2]
[419649294,1775251842989,-650.45813456,0.00021994,2]
[419649295,1775251842998,-650.45813456,0.00021994,2]
[419649296,1775251843008,-643.33338346,0.00021994,2]
[419649298,1775251843018,-650.45813456,0.00021994,2]
[419649300,1775251843028,-500.0,0.00021994,2]
[419649302,1775251843039,-500.0,0.00021994,2]
[419649304,1775251843050,-650.45813456,0.00021994,2]
[419649306,1775251843061,-500.0,0.00021994,2]
[419649308,1775251843071,-650.45813456,0.00021994,2]
[419649310,1775251843082,-500.0,0.00021994,2]
[419649312,1775251843092,-650.45813456,0.00021994,2]
[419649314,1775251843102,-500.0,0.00021994,2]
[419649316,1775251843113,-650.45813456,0.00021994,2]
[419649318,1775251843123,-500.0,0.00021994,2]
[419649320,1775251843133,-650.45813456,0.00021994,2]
[419649322,1775251843143,-650.45813456,0.00021994,2]
[419649324,1775251843153,-500.0,0.00021994,2]
[419649326,1775251843164,-650.45813456,0.00021994,2]
[419649328,1775251843174,-500.0,0.00021994,2]
[419649330,1775251843185,-650.45813456,0.00021994,2]
[419649332,1775251843196,-500.0,0.00021994,2]
[419649335,1775251843206,-650.45813456,0.00021994,2]
[419649337,1775251843217,-500.0,0.00021994,2]
[419649339,1775251843228,-500.0,0.00021994,2]
[419649341,1775251843239,-650.45813456,0.00021994,2]
[419649343,1775251843250,-500.0,0.00021994,2]
[419649345,1775251843261,-500.0,0.00021994,2]
[419649347,1775251843272,-500.0,0.00021994,2]
[419649349,1775251843282,-500.0,0.00021994,2]
[419649351,1775251843292,-500.0,0.00021994,2]
[419649353,1775251843302,-500.0,0.00021994,2]
[419649355,1775251843312,-500.0,0.00021994,2]
[419649357,1775251843322,-500.0,0.00021994,2]
[419649359,1775251843333,-500.0,0.00021994,2]
[419649361,1775251843343,-650.45813455,0.00021994,2]
[419649363,1775251843353,-500.0,0.00021999,2]
[419649365,1775251843363,-200.0,0.00021999,2]
[419649367,1775251843374,-113275.81940084,0.00022,2]
[419649389,1775251843583,-146353.65415131,0.00022,2]
[419649391,1775251843593,-154.0,0.00022,2]
[419649393,1775251843603,-151.0,0.00022,2]
[419649395,1775251843613,-154.0,0.00022,2]
[419649397,1775251843626,-196.0,0.00022,2]
[419649399,1775251843635,-2532.09245667,0.00022006,2]
[419649401,1775251843646,-301.5141799,0.00022018,2]
[419649403,1775251843656,-542.72552383,0.00022018,2]
[419649405,1775251843666,-964.84537569,0.00022018,2]
[419649407,1775251843677,-1506.06332862,0.00022018,2]
[419649409,1775251843687,-2532.09245667,0.00022117,2]
[419649411,1775251843698,-858.27912729,0.00022229,2]
[419649414,1775251843714,-507.38707281,0.00022229,2]
[419649416,1775251843730,-553.19902269,0.00022229,2]
[419649419,1775251843742,-613.22723388,0.00022229,2]
[419649421,1775251843753,-200.0,0.00022271,2]
[419649423,1775251843764,-372.7967,0.00022272,2]
[419649425,1775251843774,-200.0,0.00022272,2]
[419649427,1775251843784,-500.0,0.00022273,2]
[419649429,1775251843795,-1065.56311879,0.00022275,21]
[419649431,1775251843805,-2532.09245667,0.0002234,2]
[419649433,1775251843816,-455.2608298,0.00022419,2]
[419649436,1775251843826,-455.3221879,0.00022422,2]
[419649438,1775251843835,-1163.1668689,0.00022439,2]
[419649440,1775251843846,-278.0047006,0.0002244,2]
[419649442,1775251843856,-76718.2504533,0.0002244,2]
[419649444,1775251843867,-182.9199374,0.0002244,2]
[419649446,1775251843877,-528.0585621,0.000225,2]
[419649448,1775251843887,-1000.0,0.00022521,2]
[419649451,1775251843896,-47.83250906,0.00022521,2]
[419649454,1775251843908,-456.66944786,0.00022521,2]
[419649457,1775251843919,-597.83284092,0.00022521,2]
[419649460,1775251843929,-1000.06817871,0.00022521,2]
[419649463,1775251843939,-972.02486358,0.00022521,2]
[419649471,1775251843991,-27.97513642,0.00022521,2]
[419649473,1775251844002,-1000.0,0.00022521,2]
[419649475,1775251844013,-1000.0,0.00022521,2]
[419649477,1775251844024,-217.21054806,0.00022521,2]
[419649479,1775251844035,-1000.0,0.00022521,2]
[419649481,1775251844045,-1000.0,0.00022521,2]
[419649483,1775251844055,-1000.0,0.00022521,2]
[419649485,1775251844065,-1000.0,0.00022521,2]
[419649487,1775251844076,-500.0,0.00022547,2]
[419649489,1775251844086,-160.0,0.00022597,2]
[419649491,1775251844097,-500.0,0.00022821,2]
[419649494,1775251844108,-162.0,0.00023,2]
[419649496,1775251844118,-151.0,0.00023,2]
[419649498,1775251844128,-154.0,0.00023,2]
[419649500,1775251844138,-720.276284,0.00023068,2]
[419649502,1775251844147,-720.276284,0.00023068,2]
[419649504,1775251844157,-720.276284,0.00023068,2]
[419649506,1775251844167,-720.276284,0.00023068,2]
[419649508,1775251844176,-151.0,0.00023068,2]
[419649510,1775251844187,-186.957114,0.00023068,2]
[419649512,1775251844198,-151.0,0.00023068,2]
[419649514,1775251844209,-151.0,0.00023068,2]
[419649516,1775251844219,-151.0,0.00023068,2]
[419649518,1775251844229,-151.0,0.00023068,2]
[419649520,1775251844240,-151.0,0.00023068,2]
[419649522,1775251844251,-151.0,0.00023068,2]
[419649524,1775251844261,-151.0,0.00023068,2]
[419649526,1775251844271,-151.0,0.00023068,2]
[419649529,1775251844282,-151.0,0.00023068,2]
[419649531,1775251844293,-151.0,0.00023068,2]
[419649533,1775251844304,-151.0,0.00023068,2]
[419649535,1775251844314,-153.799537,0.00023068,2]
[419649537,1775251844324,-153.799537,0.00023068,2]
[419649539,1775251844336,-153.799537,0.00023068,2]
[419649541,1775251844346,-153.799537,0.00023068,2]
[419649543,1775251844356,-151.0,0.00023068,2]
[419649545,1775251844367,-151.0,0.00023068,2]
[419649547,1775251844377,-151.0,0.00023068,2]
[419649549,1775251844388,-151.0,0.00023068,2]
[419649551,1775251844398,-151.0,0.00023068,2]
[419649553,1775251844408,-916.320463,0.00023068,2]
[419649555,1775251844419,-829.12906277,0.00023068,2]
[419649558,1775251844436,-87.19140023,0.00023068,2]
[419649560,1775251844446,-916.320463,0.00023068,2]
[419649562,1775251844456,-154.52543,0.00023068,2]
[419649564,1775251844468,-916.320463,0.00023068,2]
[419649566,1775251844477,-151.0,0.00023068,2]
[419649568,1775251844487,-151.0,0.00023068,2]
[419649570,1775251844497,-212.185576,0.00023068,2]
[419649572,1775251844507,-151.0,0.00023068,2]
[419649574,1775251844517,-151.0,0.00023068,2]
[419649576,1775251844527,-181.971586,0.00023068,2]
[419649578,1775251844537,-181.971586,0.00023068,2]
[419649580,1775251844547,-151.0,0.00023068,2]
[419649582,1775251844556,-181.971586,0.00023068,2]
[419649584,1775251844566,-151.0,0.00023068,2]
[419649586,1775251844576,-181.971586,0.00023068,2]
[419649588,1775251844586,-151.0,0.00023068,2]
[419649590,1775251844596,-151.0,0.00023068,2]
[419649593,1775251844607,-151.0,0.00023068,2]
[419649595,1775251844617,-1111.195924,0.00023068,2]
[419649597,1775251844626,-1111.195924,0.00023068,2]
[419649599,1775251844636,-1111.195924,0.00023068,2]
[419649601,1775251844645,-1111.195924,0.00023068,2]
[419649603,1775251844654,-1500.0,0.00023068,2]
[419649605,1775251844664,-1500.0,0.00023068,2]
[419649607,1775251844673,-503.31175885,0.00023068,2]
[419649609,1775251844683,-1500.0,0.00023068,2]
[419649611,1775251844692,-1500.0,0.00023068,2]
[419649613,1775251844702,-1005.77750109,0.00023068,2]
[419649615,1775251844712,-1500.0,0.00023068,2]
[419649617,1775251844722,-1500.0,0.00023068,2]
[419649619,1775251844731,-32.51876631,0.00023069,2]
[419649621,1775251844752,-579.41123369,0.00023069,2]
[419649623,1775251844761,-611.93,0.00023069,2]
[419649626,1775251844771,-611.93,0.00023069,2]
[419649627,1775251844781,-611.93,0.00023069,2]
[419649629,1775251844791,-611.93,0.00023069,2]
[419649631,1775251844801,-611.93,0.00023069,2]
[419649633,1775251844811,-611.93,0.00023069,2]
[419649635,1775251844822,-611.93,0.00023069,2]
[419649637,1775251844831,-611.93,0.00023069,2]
[419649640,1775251844841,-611.93,0.00023069,2]
[419649642,1775251844852,-611.93,0.00023069,2]
[419649644,1775251844861,-611.93,0.00023069,2]
[419649646,1775251844871,-611.93,0.00023069,2]
[419649648,1775251844881,-611.93,0.00023069,2]
[419649650,1775251844892,-611.93,0.00023069,2]
[419649652,1775251844902,-611.93,0.00023069,2]
[419649654,1775251844912,-611.93,0.00023069,2]
[419649656,1775251844921,-611.93,0.00023069,2]
[419649658,1775251844931,-611.93,0.00023069,2]
[419649660,1775251844942,-611.93,0.00023069,2]
[419649662,1775251844952,-611.93,0.00023069,2]
[419649664,1775251844962,-611.93,0.00023069,2]
[419649666,1775251844972,-611.93,0.00023069,2]
[419649668,1775251844982,-745.96,0.00023069,2]
[419649670,1775251844992,-700.0,0.00023087,30]
[419649672,1775251845002,-500.0,0.00023095,2]
[419649674,1775251845012,-321.72793214,0.00023177,2]
[419649676,1775251845022,-140.22348684,0.00023177,2]
[419649678,1775251845035,-438.88679102,0.00023177,2]
[419649680,1775251845046,-1029.52938286,0.00023177,2]
[419649682,1775251845056,-1608.63966072,0.00023177,2]
[419649684,1775251845065,-2314.12467033,0.00023177,2]
[419649686,1775251845075,-454.9830812,0.00023239,2]
[419649688,1775251845085,-232.1,0.00023246,7]
[419649690,1775251845096,-500.0,0.00023369,2]
[419649692,1775251845107,-2081.62357747,0.00023513,29]
[419649694,1775251845117,-270.83333333,0.00023521,2]
[419649697,1775251845128,-199.527699,0.00023616,2]
[419649699,1775251845138,-199.527699,0.00023616,2]
[419649701,1775251845148,-199.527699,0.00023616,2]
[419649703,1775251845160,-199.527699,0.00023616,2]
[419649705,1775251845172,-163.999233,0.00023616,2]
[419649707,1775251845182,-163.999233,0.00023616,2]
[419649709,1775251845192,-163.999233,0.00023616,2]
[419649711,1775251845202,-298.851574,0.00023616,2]
[419649713,1775251845213,-163.999233,0.00023616,2]
[419649715,1775251845223,-151.0,0.00023616,2]
[419649717,1775251845233,-151.0,0.00023616,2]
[419649719,1775251845243,-151.0,0.00023616,2]
[419649722,1775251845254,-801.93931613,0.00023616,2]
[419649724,1775251845266,-428.72374487,0.00023616,2]
[419649726,1775251845277,-1151.98791725,0.00023616,2]
[419649728,1775251845289,-78.67514375,0.00023616,2]
[419649730,1775251845300,-1230.663061,0.00023616,2]
[419649732,1775251845311,-1230.663061,0.00023616,2]
[419649734,1775251845321,-500.67352224,0.00023616,2]
[419649736,1775251845331,-346.49048826,0.00023616,2]
[419649738,1775251845341,-457.98670864,0.00023616,2]
[419649843,1775251846371,-1542.01329136,0.00023616,2]
[419649845,1775251846382,-2000.0,0.00023616,2]
[419649847,1775251846392,-2000.0,0.00023616,2]
[419649849,1775251846401,-2000.0,0.00023616,2]
[419649851,1775251846411,-500.0,0.00023643,2]
[419649853,1775251846420,-162.380719,0.00023733,2]
[419649855,1775251846430,-151.0,0.00023733,2]
[419649857,1775251846441,-151.0,0.00023733,2]
[419649859,1775251846451,-461.0432349,0.00023733,2]
[419649861,1775251846461,-181.08010149,0.00023733,2]
[419649864,1775251846471,-151.0,0.00023733,2]
[419649866,1775251846482,-151.0,0.00023733,2]
[419649868,1775251846491,-151.0,0.00023733,2]
[419649870,1775251846502,-599.60298507,0.00023733,2]
[419649872,1775251846513,-181.08010149,0.00023733,2]
[419649874,1775251846523,-187.78006525,0.00023733,2]
[419649876,1775251846533,-188.2670176,0.00023733,2]
[419649878,1775251846543,-599.60298507,0.00023733,2]
[419649880,1775251846554,-156.587,0.00023733,2]
[419649882,1775251846564,-2398.4119403,0.00023733,2]
[419649885,1775251846574,-621.78829552,0.00023788,2]
[419649887,1775251846583,-644.79446246,0.00023843,2]
[419649889,1775251846593,-668.65185757,0.00023898,2]
[419649891,1775251846603,-500.0,0.00023917,2]
[419649893,1775251846613,-693.3919763,0.00023953,2]
[419649895,1775251846623,-162.0,0.00024,2]
[419649897,1775251846633,-154.0,0.00024,2]
[419649899,1775251846643,-719.04747942,0.00024008,2]
[419649901,1775251846652,-324.9815827,0.00024062,2]
[419649903,1775251846662,-455.2608298,0.00024062,2]
[419649905,1775251846672,-151.0,0.00024062,2]
[419649907,1775251846682,-745.65223616,0.00024063,2]
[419649909,1775251846692,-773.2413689,0.00024118,2]
[419649911,1775251846702,-160.0,0.00024164,14]
[419649913,1775251846713,-194.751754,0.00024164,14]
[419649916,1775251846723,-229.503508,0.00024164,14]
[419649918,1775251846733,-160.0,0.00024164,14]
[419649920,1775251846743,-192.236861,0.00024164,14]
[419649922,1775251846753,-224.473723,0.00024164,14]
[419649934,1775251846853,-2500.0,0.00024164,2]
[419649936,1775251846864,-2500.0,0.00024164,2]
[419649938,1775251846874,-1128.98068335,0.00024164,2]
[419649940,1775251846884,-500.0,0.00024164,2]
[419649942,1775251846894,-801.85129955,0.00024173,2]
[419649944,1775251846904,-500.0,0.00024191,2]
[419649946,1775251846914,-423.1891944,0.00024192,2]
[419649948,1775251846924,-831.51979763,0.00024228,2]
[419649950,1775251846934,-151.0,0.00024281,2]
[419649952,1775251846946,-168.3888056,0.00024281,2]
[419649955,1775251846958,-621.78829552,0.00024281,2]
[419649957,1775251846967,-2487.15318209,0.00024281,2]
[419649959,1775251846977,-862.28603014,0.00024283,2]
[419649961,1775251846987,-26641.5361593,0.00024293,2]
[419649963,1775251846998,-894.19061326,0.00024338,2]
[419649965,1775251847009,-927.27566595,0.00024393,2]
[419649967,1775251847019,-413.48757791,0.00024397,2]
[419649969,1775251847030,-437.16209452,0.00024397,2]
[419649971,1775251847042,-786.89177014,0.00024397,2]
[419649973,1775251847052,-306.02972606,0.00024397,2]
[419649976,1775251847063,-550.85350692,0.00024397,2]
[419649978,1775251847072,-979.29512341,0.00024397,2]
[419649980,1775251847083,-744.27764024,0.00024397,2]
[419649982,1775251847092,-160.0,0.00024402,14]
[419649984,1775251847103,-278.389647,0.00024402,14]
[419649986,1775251847113,-396.779294,0.00024402,14]
[419649988,1775251847123,-160.0,0.00024402,14]
[419649990,1775251847133,-230.704126,0.00024402,14]
[419649992,1775251847142,-301.408253,0.00024402,14]
[419649994,1775251847152,-160.0,0.00024402,14]
[419649996,1775251847163,-323.922655,0.00024402,14]
[419649999,1775251847173,-487.84531,0.00024402,14]
[419650001,1775251847183,-160.0,0.00024402,14]
[419650003,1775251847193,-296.099613,0.00024402,14]
[419650005,1775251847203,-432.199227,0.00024402,14]
[419650007,1775251847212,-961.58486559,0.00024448,2]
[419650009,1775251847222,-500.0,0.00024465,2]
[419650011,1775251847232,-1398.91870248,0.00024485,2]
[419650013,1775251847241,-207.25719558,0.000245,2]
[419650015,1775251847251,-997.16350561,0.00024503,2]
[419650017,1775251847261,-539.73,0.00024596,2]
[419650019,1775251847270,-539.73,0.00024596,2]
[419650021,1775251847280,-539.73,0.00024596,2]
[419650023,1775251847290,-539.73,0.00024596,2]
[419650025,1775251847299,-539.73,0.00024596,2]
[419650027,1775251847309,-539.73,0.00024596,2]
[419650029,1775251847320,-539.73,0.00024596,2]
[419650031,1775251847330,-539.73,0.00024596,2]
[419650034,1775251847340,-539.73,0.00024596,2]
[419650036,1775251847350,-539.73,0.00024596,2]
[419650038,1775251847360,-539.73,0.00024596,2]
[419650040,1775251847370,-539.73,0.00024596,2]
[419650042,1775251847380,-539.73,0.00024596,2]
[419650044,1775251847390,-539.73,0.00024596,2]
[419650046,1775251847400,-539.73,0.00024596,2]
[419650048,1775251847410,-539.73,0.00024596,2]
[419650050,1775251847419,-539.73,0.00024596,2]
[419650052,1775251847429,-539.73,0.00024596,2]
[419650054,1775251847439,-539.73,0.00024596,2]
[419650056,1775251847449,-151.0,0.00024596,2]
[419650059,1775251847459,-151.0,0.00024596,2]
[419650061,1775251847469,-153.799537,0.00024596,2]
[419650063,1775251847479,-153.799537,0.00024596,2]
[419650065,1775251847488,-153.799537,0.00024596,2]
[419650067,1775251847498,-153.799537,0.00024596,2]
[419650069,1775251847509,-151.0,0.00024596,2]
[419650071,1775251847519,-151.0,0.00024596,2]
[419650073,1775251847528,-237.740727,0.00024596,2]
[419650075,1775251847539,-151.0,0.00024596,2]
[419650077,1775251847549,-151.0,0.00024596,2]
[419650079,1775251847559,-151.0,0.00024596,2]
[419650081,1775251847569,-916.320463,0.00024596,2]
[419650084,1775251847579,-916.320463,0.00024596,2]
[419650086,1775251847589,-916.320463,0.00024596,2]
[419650088,1775251847599,-916.320463,0.00024596,2]
[419650090,1775251847610,-151.0,0.00024596,2]
[419650092,1775251847620,-236.269985,0.00024596,2]
[419650094,1775251847630,-151.0,0.00024596,2]
[419650096,1775251847640,-1111.195924,0.00024596,2]
[419650098,1775251847650,-1111.195924,0.00024596,2]
[419650100,1775251847662,-1111.195924,0.00024596,2]
[419650102,1775251847672,-1111.195924,0.00024596,2]
[419650104,1775251847682,-539.73,0.00024597,2]
[419650107,1775251847693,-539.73,0.00024597,2]
[419650109,1775251847704,-539.73,0.00024597,2]
[419650111,1775251847713,-539.73,0.00024597,2]
[419650113,1775251847725,-539.80992254,0.00024597,2]
[419650115,1775251847735,-151.0,0.00024597,2]
[419650117,1775251847744,-151.0,0.00024597,2]
[419650119,1775251847755,-151.0,0.00024597,2]
[419650121,1775251847766,-181.971586,0.00024597,2]
[419650124,1775251847776,-181.971586,0.00024597,2]
[419650126,1775251847787,-151.0,0.00024597,2]
[419650128,1775251847797,-181.971586,0.00024597,2]
[419650130,1775251847806,-151.0,0.00024597,2]
[419650132,1775251847817,-181.971586,0.00024597,2]
[419650134,1775251847827,-151.0,0.00024597,2]
[419650136,1775251847836,-2203.0,0.00024612,2]
[419650138,1775251847846,-151.5,0.00024612,2]
[419650140,1775251847856,-151.5,0.00024612,2]
[419650142,1775251847865,-297.0,0.00024612,2]
[419650144,1775251847875,-300.0,0.00024612,2]
[419650146,1775251847884,-156.05592466,0.00024612,2]
[419650149,1775251847894,-151.5,0.00024612,2]
[419650151,1775251847904,-151.5,0.00024612,2]
[419650153,1775251847913,-297.0,0.00024612,2]
[419650155,1775251847922,-1405.0,0.00024612,2]
[419650157,1775251847933,-151.0,0.00024612,2]
[419650159,1775251847943,-151.0,0.00024612,2]
[419650161,1775251847952,-151.0,0.00024612,2]
[419650163,1775251847962,-151.0,0.00024612,2]
[419650165,1775251847972,-151.0,0.00024612,2]
[419650167,1775251847982,-151.0,0.00024612,2]
[419650169,1775251847993,-168.653921,0.00024612,2]
[419650171,1775251848004,-151.0,0.00024612,2]
[419650173,1775251848014,-151.0,0.00024612,2]
[419650176,1775251848025,-1240.0,0.00024658,5]
[419650178,1775251848035,-151.0,0.00024658,2]
[419650180,1775251848045,-151.0,0.00024658,2]
[419650182,1775251848054,-151.0,0.00024658,2]
[419650184,1775251848065,-207.822596,0.00024658,2]
[419650186,1775251848075,-210.03987907,0.00024712,2]
[419650188,1775251848085,-500.0,0.00024739,2]
[419650190,1775251848095,-162.38071902,0.00024829,2]
[419650192,1775251848106,-151.0,0.00024829,2]
[419650194,1775251848116,-644.79446246,0.00024829,2]
[419650196,1775251848126,-1757.02456397,0.00024829,2]
[419650198,1775251848137,-1163.1668689,0.00024832,2]
[419650200,1775251848146,-278.0047006,0.00024833,2]
[419650202,1775251848156,-1530.14863032,0.0002487,2]
[419650205,1775251848166,-500.0,0.00024873,2]
[419650207,1775251848176,-500.0,0.00024873,2]
[419650209,1775251848186,-500.0,0.00024873,2]
[419650211,1775251848196,-720.276284,0.00024873,2]
[419650213,1775251848206,-720.276284,0.00024873,2]
[419650215,1775251848216,-720.276284,0.00024873,2]
[419650217,1775251848227,-720.276284,0.00024873,2]
[419650219,1775251848238,-151.0,0.00024873,2]
[419650221,1775251848247,-151.0,0.000249,2]
[419650223,1775251848257,-151.0,0.000249,2]
[419650225,1775251848267,-151.0,0.000249,2]
[419650227,1775251848278,-243.078745,0.000249,2]
[419650229,1775251848288,-160.042029,0.000249,2]
[419650231,1775251848297,-160.042029,0.000249,2]
[419650233,1775251848309,-160.042029,0.000249,2]
[419650236,1775251848319,-160.042029,0.000249,2]
[419650238,1775251848331,-151.0,0.000249,2]
[419650240,1775251848342,-199.527699,0.000249,2]
[419650242,1775251848352,-199.527699,0.000249,2]
[419650244,1775251848362,-199.527699,0.000249,2]
[419650246,1775251848372,-199.527699,0.000249,2]
[419650248,1775251848382,-163.999233,0.000249,2]
[419650250,1775251848392,-163.999233,0.000249,2]
[419650252,1775251848402,-163.999233,0.000249,2]
[419650254,1775251848412,-163.999233,0.000249,2]
[419650256,1775251848421,-151.0,0.000249,2]
[419650258,1775251848431,-184.55444,0.000249,2]
[419650260,1775251848442,-151.0,0.000249,2]
[419650262,1775251848451,-1230.663061,0.000249,2]
[419650264,1775251848461,-1230.663061,0.000249,2]